[Event "FIDE WTC Prel-A 2022"]
[Site "Jerusalem"]
[Date "2022.11.22"]
[Round "5.11"]
[White "Bernadskiy, Vitaliy"]
[Black "Warmerdam, Max"]
[Result "1/2-1/2"]
[ECO "A13"]
[WhiteElo "2615"]
[BlackElo "2617"]
[Annotator "TA"]
[PlyCount "97"]
[EventDate "2022.11.20"]
[EventType "team-tourn"]
[EventCountry "ISR"]
[SourceTitle "playchess.com"]
[Source "ChessBase"]
[SourceQuality "1"]
[WhiteTeam "Ukraine"]
[BlackTeam "Netherlands"]
[WhiteTeamCountry "UKR"]
[BlackTeamCountry "NED"]
[TimeControl "2700+10"]

{[%evp 9,97,20,17,10,36,0,2,9,11,2,5,-8,0,-6,0,-7,0,0,18,0,34,24,25,18,8,7,27,16,11,2,26,13,60,13,14,0,0,0,0,0,8,0,-9,-9,-8,-25,0,0,0,-52,0,-18,0,0,7,0,0,0,0,0,0,-65,33,61,55,0,0,0,0,-33,-33,-33,-33,-33,-33,-33,-33,-33,-33,-33,-33,-33,-33,-33,0,-33,0,-33,0,-33]} 1. c4 {[%emt 0:00:03]} e6 {[%emt 0:00:02]} 2. g3 {[%emt 0:00:01]} d5 {[%emt 0:00:03]} 3. Bg2 {[%emt 0:00:02]} d4 {[%emt 0:00:07]} 4. Nf3 {[%emt 0:00:13]} Nc6 {[%emt 0:00:04]} 5. O-O {[%emt 0:00:05]} Bc5 {[%emt 0:00:09]} 6. d3 {[%emt 0:00:11] A13: English Opening: 1...e6.} Nf6 {[%emt 0:00:17]} 7. Na3 {[%emt 0:02:32] 7.Nbd2 is the hot move.} O-O {[%emt 0:00:20]} 8. Nc2 {[%emt 0:00:10]} e5 {[%emt 0:00:13]} 9. b4 {[%emt 0:03:56]} Nxb4 {[%emt 0:00:03] [#]} 10. Nxe5 $146 {[%emt 0:00:02]} ({Predecessor:} 10. Nxb4 Bxb4 11. Nxe5 Re8 12. Nf3 Bc5 13. Rb1 Rb8 14. Re1 b6 15. Nd2 Bg4 16. h3 {1-0 (42) Janik,I (2470)-Nguyen,T (2569) Zlin 2020}) 10... Re8 {[%emt 0:02:11]} 11. Nf3 {[%emt 0:00:15]} Nxc2 {[%emt 0:04:51]} 12. Qxc2 {[%emt 0:00:02]} c6 {[%emt 0:00:02]} 13. a4 {[%emt 0:00:31]} Bf5 {[%emt 0:00:46]} 14. Ba3 {[%emt 0:00:57]} Qd6 {[%emt 0:02:51]} 15. Bxc5 {[%emt 0:02:08]} Qxc5 {[%emt 0:00:03]} 16. Qb2 {[%emt 0:00:37]} Rad8 {[%emt 0:00:01][%cal Ba8d8,Bd8d7,Bd7e7,Be7e6][%mdl 32]} 17. Rfe1 {[%emt 0:02:09]} Rd7 {[%emt 0:04:28]} 18. a5 {[%emt 0:01:40]} Bg4 {[%emt 0:00:53]} 19. Qd2 {[%emt 0:00:09]} Qh5 {[%emt 0:02:12]} 20. Qf4 {[%emt 0:01:47]} c5 {[%emt 0:00:28]} (20... Bxf3 $11 {is more appropriate.} 21. Qxf3 Qxf3 22. Bxf3 a6) 21. Rab1 {[%emt 0:00:05]} (21. e3 $14) 21... Rde7 $11 {[%emt 0:00:24]} 22. Rb5 {[%emt 0:00:55]} h6 {[%emt 0:00:23]} 23. Qd6 {[%emt 0:05:20]} b6 {[%emt 0:04:12]} ({Don't do} 23... Bxf3 24. Bxf3 Ng4 25. h4 $16) 24. axb6 {[%emt 0:02:27]} axb6 {[%emt 0:00:01]} 25. Rb2 {[%emt 0:03:44]} ({Reject} 25. Rxb6 Rxe2 26. Rxe2 Rxe2 27. Rb8+ Kh7 $17) 25... Re6 {[%emt 0:00:22]} 26. Qc7 {[%emt 0:00:46]} R8e7 {[%emt 0:00:15]} 27. Qb8+ {[%emt 0:00:06]} Re8 {[%emt 0:00:01]} 28. Qa7 {[%emt 0:00:19]} Qf5 {[%emt 0:03:25][%cal Of5d3]} 29. Rd2 {[%emt 0:04:07]} (29. Nh4 $11 Qh5 30. f3) 29... Qh5 {[%emt 0:01:20]} (29... g5 $1 $15) 30. Qa4 {[%emt 0:00:34]} Bxf3 {[%emt 0:02:27]} 31. Bxf3 {[%emt 0:00:07]} Ng4 {[%emt 0:00:01]} 32. h4 {[%emt 0:01:17]} g5 {[%emt 0:03:35]} 33. Kg2 $1 {[%emt 0:01:08]} gxh4 {[%emt 0:02:23]} 34. Rh1 {[%emt 0:00:09]} Qg5 {[%emt 0:03:45] [#] Strongly threatening ...Nxf2.} 35. Rxh4 {[%emt 0:00:03]} (35. Bxg4 $11 Qxg4 36. Rxh4) 35... Qxd2 {[%emt 0:04:17]} (35... Nxf2 $1 $15 36. Ra2 b5 37. Qxb5 Nd1) 36. Rxg4+ $14 {[%emt 0:00:42]} Kf8 $1 {[%emt 0:00:01]} (36... Kh8 37. Qd7 Rxe2 38. Bxe2 Qxe2 39. Qxf7 Qxg4 40. Qxe8+ Kh7 41. Qe7+ Kg8 42. Qd8+ Kh7 43. Qxb6 $18) 37. Qa7 {[%emt 0:00:20]} (37. Rf4 $1 $14 Rg6 38. Kh3 Rxe2 39. Qd7) 37... Rf6 {[%emt 0:00:05] And now ...h5 would win.} 38. Qd7 {[%emt 0:00:52]} h5 {[%emt 0:00:17]} 39. Rg8+ {[%emt 0:00:59][%mdl 64] [#] Discovered Attack, Decoy} Kxg8 {[%emt 0:00:01]} 40. Qxe8+ $15 {[%emt 0:00:02][%mdl 4096] Endgame KQR-KQB} Kg7 {[%emt 0:00:08] aiming for ...Qg5.} 41. Bxh5 {[%emt 0:01:24]} Qg5 {[%emt 0:00:45]} 42. Bf3 {[%emt 0:00:16]} Qf5 {[%emt 0:00:02]} 43. Qb8 {[%emt 0:00:31]} Re6 {[%emt 0:00:23]} 44. Kg1 {[%emt 0:00:49]} Qe5 {[%emt 0:00:30]} 45. Qb7 {[%emt 0:00:07]} Rf6 {[%emt 0:00:08]} 46. Kg2 {[%emt 0:00:13]} Qf5 {[%emt 0:00:03]} 47. Qb8 {[%emt 0:01:08]} Re6 {[%emt 0:00:04]} 48. Kg1 {[%emt 0:00:07]} Rf6 {[%emt 0:00:05]} 49. Kg2 {[%emt 0:01:01] Weighted Error Value: White=0.11 (very precise) /Black=0.13 (very precise)} 1/2-1/2

[Event "FIDE WTC Prel-A 2022"]
[Site "Jerusalem"]
[Date "2022.11.22"]
[Round "5.12"]
[White "Kevlishvili, Robby"]
[Black "Oleksiyenko, Mykhaylo"]
[Result "1/2-1/2"]
[ECO "C07"]
[WhiteElo "2536"]
[BlackElo "2594"]
[Annotator "TA"]
[PlyCount "92"]
[EventDate "2022.11.20"]
[EventType "team-tourn"]
[EventCountry "ISR"]
[SourceTitle "playchess.com"]
[Source "ChessBase"]
[SourceQuality "1"]
[WhiteTeam "Netherlands"]
[BlackTeam "Ukraine"]
[WhiteTeamCountry "NED"]
[BlackTeamCountry "UKR"]
[TimeControl "2700+10"]

{[%evp 11,92,12,8,0,15,16,0,0,29,28,77,16,18,0,19,11,15,16,12,4,24,18,7,14,25,18,23,19,19,24,17,17,22,27,52,42,54,24,23,30,22,24,22,18,77,78,82,73,70,74,78,70,73,71,70,10,20,16,39,29,44,51,41,75,74,0,0,0,0,0,0,0,0,0,0,0,0,0,0,0,0,0,0]} 1. e4 {[%emt 0:00:03]} e6 {[%emt 0:00:03]} 2. d4 {[%emt 0:00:04]} d5 {[%emt 0:00:03]} 3. Nd2 {[%emt 0:00:04]} c5 {[%emt 0:00:05]} 4. Ngf3 {[%emt 0:00:24]} cxd4 {[%emt 0:00:05]} 5. Nxd4 {[%emt 0:00:03]} Nf6 {[%emt 0:00:14]} 6. exd5 {[%emt 0:00:06]} Nxd5 {[%emt 0:00:07]} 7. g3 {[%emt 0:00:59] C07: French Tarrasch: 3...c5, 4 Ngf3 and 4 exd5 Qxd5.} Be7 {[%emt 0:00:23]} 8. N2f3 {[%emt 0:00:04]} O-O {[%emt 0:01:03][%cal Oe6e5]} 9. Bg2 {[%emt 0:00:11]} Qc7 {[%emt 0:00:48]} 10. O-O {[%emt 0:00:15] [#]} b6 $146 {[%emt 0:01:37] [#]} (10... Nc6 $11) ({Predecessor:} 10... Bf6 11. Qe2 a6 12. Rd1 h6 13. c4 Nb6 14. b3 e5 15. Nc2 Nc6 16. Ba3 Be7 17. Bxe7 Qxe7 {1-0 (35) Savon,V (2540)-Kogan,B Beltsy 1977}) 11. Bd2 {[%emt 0:09:12]} (11. Ng5 $1 $16) 11... Bb7 {[%emt 0:06:35]} 12. Rc1 {[%emt 0:00:28]} a6 {[%emt 0:00:46]} 13. c4 {[%emt 0:00:11]} Nf6 {[%emt 0:00:12]} 14. Bf4 {[%emt 0:00:25]} Qc8 {[%emt 0:00:18]} 15. Qe2 {[%emt 0:00:07]} (15. Ne5 {keeps more tension.} Rd8 16. Bxb7 Qxb7 17. Qf3) 15... Nc6 {[%emt 0:01:03]} 16. Be3 {[%emt 0:00:20]} Rd8 {[%emt 0:02:50]} 17. Rfd1 {[%emt 0:01:00]} Bc5 {[%emt 0:02:13]} 18. Nxc6 {[%emt 0:01:40]} Qxc6 {[%emt 0:01:17]} 19. Ne1 {[%emt 0:00:14][%cal Bf3e1,Be1d3,Bd3c5][%mdl 32]} Qc7 {[%emt 0:02:37]} 20. Bxc5 {[%emt 0:00:36]} bxc5 {[%emt 0:01:13]} 21. Bxb7 {[%emt 0:00:08]} Qxb7 {[%emt 0:00:13]} 22. Nd3 {[%emt 0:00:06]} Rdc8 {[%emt 0:02:25]} 23. Qe3 {[%emt 0:02:11]} h6 {[%emt 0:04:08]} 24. Nxc5 {[%emt 0:01:46]} Qxb2 {[%emt 0:02:50]} 25. Na4 {[%emt 0:00:14]} Qb4 {[%emt 0:00:40]} 26. Nb6 {[%emt 0:00:04]} Ng4 {[%emt 0:00:02]} 27. Qd4 {[%emt 0:04:30]} e5 {[%emt 0:02:08]} (27... Rd8 $1 $11 {keeps the balance.} 28. Nd7 (28. Qxg4 Qxb6 29. c5 Qc6 $11) (28. Nxa8 $2 Rxd4 29. Rxd4 Nxf2 $19) (28. Qxd8+ Rxd8 29. Rxd8+ Kh7 $17) 28... Qa4) 28. Qxg4 $16 {[%emt 0:00:57]} (28. a3 {looks sharper.} Qb3 29. Rc3 Qb2 30. Qxg4 Qxb6 31. Qe4) 28... Qxb6 {[%emt 0:00:01]} 29. Qe4 {[%emt 0:00:48]} Qe6 {[%emt 0:06:18]} 30. Rd5 {[%emt 0:00:17] White is much more active.} Re8 {[%emt 0:00:12]} 31. Re1 {[%emt 0:01:42][%cal Rd5e5]} Rac8 {[%emt 0:00:43]} 32. c5 {[%emt 0:00:51][%cal Rd5e5] Against Qb6} f5 {[%emt 0:00:51]} 33. Qd3 {[%emt 0:00:04]} ({But not} 33. Qxe5 $2 Qc6 34. a3 Rxe5 $19) (33. Qf3 $14) 33... e4 $11 {[%emt 0:00:56]} 34. Qd4 {[%emt 0:00:01]} Rc6 {[%emt 0:00:10]} 35. Rb1 {[%emt 0:04:41]} e3 {[%emt 0:02:01]} 36. fxe3 {[%emt 0:00:06]} Qxe3+ {[%emt 0:00:09]} 37. Qxe3 {[%emt 0:00:13]} Rxe3 {[%emt 0:00:01]} 38. Rxf5 $14 {[%emt 0:06:30][%mdl 4096] Endgame KRR-KRR} (38. Rb6 $16 Ree6 39. Rb8+ Kh7 40. Kf2 (40. Rxf5 Re1+ 41. Kf2 Rc1 $11)) 38... Rc3 $11 {[%emt 0:01:01] The position is equal.} 39. Rb8+ {[%emt 0:01:09]} Kh7 {[%emt 0:00:01]} 40. Ra8 {[%emt 0:00:09]} Ra3 {[%emt 0:00:50]} 41. Ra7 {[%emt 0:02:13]} Rxa2 {[%emt 0:00:10]} 42. Rff7 {[%emt 0:00:13]} Rxc5 {[%emt 0:00:50] [#] aiming for ...Rc1+.} 43. Rxg7+ {[%emt 0:00:02]} Kh8 {[%emt 0:00:01][%cal Rc5c1]} 44. Rh7+ {[%emt 0:00:02]} Kg8 {[%emt 0:00:01][%cal Rc5c1]} 45. Rhg7+ {[%emt 0:00:02]} Kh8 {[%emt 0:00:00][%cal Rc5c1]} 46. Rh7+ {[%emt 0:00:02]} Kg8 {[%emt 0:00:01] Weighted Error Value: White=0.09 (flawless) /Black=0.10 (very precise)} 1/2-1/2